bitfinex/quotes_BTCUSD_20240730
["timestamp","ask_amount","ask_price","bid_price","bid_amount"]
[1722346033908,0.17899415,66745.0,66744.0,0.16841595]
[1722346034110,0.47864115,66745.0,66744.0,0.16841595]
[1722346035158,0.77028815,66745.0,66744.0,0.159573]
[1722346035355,0.77028815,66745.0,66744.0,0.16752752]
[1722346035604,0.77128815,66745.0,66744.0,0.159573]
[1722346035800,0.77028815,66745.0,66744.0,0.159573]
[1722346036159,0.77128815,66745.0,66744.0,0.16752752]
[1722346036475,0.77128815,66745.0,66744.0,0.159573]
[1722346036864,0.02217115,66745.0,66744.0,0.459225]
[1722346037082,0.02217115,66745.0,66744.0,0.61700484]
[1722346037500,0.02217115,66745.0,66744.0,0.91665684]
[1722346037926,0.02217115,66745.0,66744.0,1.21630884]
[1722346038503,0.02217115,66745.0,66744.0,0.91665684]
[1722346038709,0.00280423,66745.0,66744.0,1.36464564]
[1722346038909,0.449356,66762.0,66761.0,0.1419]
[1722346039110,1.06595736,66762.0,66761.0,0.1419]
[1722346039770,0.76638636,66762.0,66761.0,0.1419]
[1722346040198,0.46681536,66762.0,66761.0,0.1419]
[1722346040458,0.46681536,66762.0,66761.0,0.601264]
[1722346040459,0.01745936,66762.0,66761.0,0.601264]
[1722346040673,0.01745936,66762.0,66761.0,0.16322263]
[1722346041091,0.16724436,66762.0,66761.0,0.16322263]
[1722346041328,0.76638636,66762.0,66761.0,0.16322263]
[1722346041546,0.77538636,66762.0,66761.0,0.16322263]
[1722346041738,0.76638636,66762.0,66761.0,0.16322263]
[1722346041977,0.76638636,66762.0,66761.0,0.1519]
[1722346042115,0.76738636,66762.0,66761.0,0.1559]
[1722346042318,0.76738636,66762.0,66761.0,0.1459]
[1722346042522,1.06695736,66762.0,66761.0,0.1459]
[1722346042923,1.06595736,66762.0,66761.0,0.1419]
[1722346043707,0.76638636,66762.0,66761.0,0.1419]
[1722346044133,0.76738636,66762.0,66761.0,0.1419]
[1722346045018,0.01845936,66762.0,66761.0,0.301688]
[1722346045221,0.01845936,66762.0,66761.0,0.601264]
[1722346045531,0.01845936,66762.0,66761.0,0.61253339]
[1722346045683,0.01845936,66762.0,66761.0,0.16316939]
[1722346046043,0.46681536,66762.0,66761.0,0.16316939]
[1722346046243,0.01745936,66762.0,66761.0,0.16316939]
[1722346047098,0.01745936,66762.0,66761.0,0.31295739]
[1722346047518,0.360252,66789.0,66761.0,0.31295739]
[1722346047519,0.149749,66778.0,66777.0,0.01]
[1722346047768,0.449248,66778.0,66777.0,0.01]
[1722346047898,0.748747,66778.0,66777.0,0.02124136]
[1722346048119,0.748747,66778.0,66777.0,0.01]
[1722346048683,0.454248,66778.0,66777.0,0.01]
[1722346049118,0.005,66778.0,66777.0,0.08534716]
[1722346049323,0.005,66778.0,66777.0,0.1592]
[1722346049528,0.005,66778.0,66777.0,0.94263797]
[1722346049972,0.005,66778.0,66777.0,1.24214197]
[1722346050306,0.005,66778.0,66777.0,0.17042325]
[1722346050788,0.149743,66781.0,66779.0,0.01]
[1722346051006,0.299479,66783.0,66782.0,0.01]
[1722346051007,0.449217,66783.0,66782.0,0.01]
[1722346051330,0.748696,66783.0,66782.0,0.01120076]
[1722346051538,0.748696,66783.0,66782.0,0.01]
[1722346051975,0.748696,66783.0,66782.0,0.02120076]
[1722346052230,0.748696,66783.0,66782.0,0.01]
[1722346052392,0.750696,66783.0,66782.0,0.02120076]
[1722346052586,0.750696,66783.0,66782.0,0.01]
[1722346052822,0.750696,66783.0,66782.0,0.02120076]
[1722346053018,0.750696,66783.0,66779.0,0.01]
[1722346053019,0.002,66783.0,66779.0,0.01]
[1722346053188,0.451215,66783.0,66782.0,0.02120076]
[1722346053389,0.451215,66783.0,66782.0,0.01]
[1722346053390,0.750692,66783.0,66782.0,0.01]
[1722346053912,0.752692,66783.0,66782.0,0.01]
[1722346055205,1.052169,66783.0,66782.0,0.01]
[1722346056019,0.299481,66782.0,66780.0,0.01]
[1722346056228,0.449229,66781.0,66780.0,0.01]
[1722346056641,0.748715,66781.0,66780.0,0.01]
[1722346057642,0.748715,66781.0,66780.0,0.001]
[1722346058072,0.748715,66781.0,66780.0,0.011]
[1722346059429,1.048201,66781.0,66780.0,0.011]
[1722346060005,1.048201,66781.0,66778.0,0.060985]
[1722346060006,0.748737,66779.0,66778.0,0.060985]
[1722346061084,1.048232,66779.0,66778.0,0.060985]
[1722346062730,1.048232,66779.0,66778.0,0.0089891]
[1722346062731,1.347727,66779.0,66778.0,0.0089891]
[1722346062930,1.447727,66779.0,66778.0,0.0089891]
[1722346063369,1.048327,66773.0,66772.0,0.0787]
[1722346065063,0.399495,66779.0,66759.0,0.07534716]
[1722346065064,0.149772,66768.0,66767.0,0.1444]
[1722346065264,0.74886,66768.0,66767.0,0.1444]
[1722346065444,1.048404,66768.0,66767.0,0.1444]
[1722346065641,0.74894,66761.0,66760.0,0.1444]
[1722346065840,1.048516,66761.0,66760.0,0.1444]
[1722346074167,1.051516,66761.0,66760.0,0.1444]
[1722346074793,1.05124718,66761.0,66760.0,0.1444]
[1722346077855,1.05305131,66761.0,66760.0,0.1444]
[1722346080535,0.75347531,66761.0,66760.0,0.1444]
[1722346080827,1.05305131,66761.0,66760.0,0.1444]
[1722346082252,0.75347531,66761.0,66760.0,0.1444]
[1722346085245,0.75347531,66761.0,66760.0,0.44398]
[1722346085246,0.00480413,66761.0,66760.0,0.44398]
[1722346085362,0.00480413,66761.0,66760.0,0.89335]
[1722346085565,0.00480413,66761.0,66760.0,0.90459638]
[1722346085764,0.00480413,66761.0,66760.0,0.30543638]
[1722346085965,0.00480413,66761.0,66760.0,0.15564638]
[1722346086576,0.00180413,66761.0,66760.0,0.15564638]
[1722346086876,0.00280413,66761.0,66760.0,0.16064638]
[1722346087308,0.00180413,66761.0,66760.0,0.15564638]
[1722346088872,0.00280413,66761.0,66760.0,0.16064638]
[1722346089430,0.00280413,66761.0,66760.0,0.23599354]
[1722346089663,0.00280413,66761.0,66760.0,0.98793889]
[1722346089891,0.00280413,66761.0,66760.0,1.28751889]
[1722346090761,0.00280413,66761.0,66760.0,0.98494354]
[1722346095102,0.00280413,66761.0,66760.0,0.16064638]
[1722346095287,0.15259213,66761.0,66760.0,0.16064638]
[1722346095484,0.45216813,66761.0,66760.0,0.1494]
[1722346096104,0.00280413,66761.0,66760.0,0.15948066]
[1722346096437,0.00280413,66761.0,66760.0,0.60885066]
[1722346096573,0.00280413,66761.0,66760.0,0.90843066]
[1722346097432,0.00280413,66761.0,66760.0,0.92425996]
[1722346097827,0.00363413,66761.0,66760.0,0.92425996]
[1722346098097,0.00363413,66761.0,66760.0,0.62467996]
[1722346098224,0.00363413,66761.0,66760.0,0.32509996]
[1722346099173,0.00363413,66761.0,66760.0,0.17530996]
[1722346099896,0.00363413,66761.0,66760.0,0.32509996]
[1722346100252,0.00336531,66761.0,66760.0,0.42506307]
[1722346101057,0.00336531,66761.0,66760.0,1.02422307]
[1722346101644,0.00336531,66761.0,66760.0,0.92425996]
[1722346102495,0.00336531,66761.0,66760.0,0.62467996]
[1722346102715,0.00336531,66761.0,66760.0,0.32509996]
[1722346103175,0.00336531,66761.0,66760.0,0.17530996]
[1722346104463,0.00336531,66761.0,66760.0,0.32509996]
[1722346104667,0.00336531,66761.0,66760.0,0.62467996]
[1722346105421,0.15315331,66761.0,66760.0,0.17530996]
[1722346105622,0.00336531,66761.0,66760.0,0.17530996]
[1722346105845,0.00336531,66761.0,66760.0,0.32509996]
[1722346106266,0.00336531,66761.0,66760.0,0.17530996]
[1722346107388,0.00336531,66761.0,66760.0,0.32509996]
[1722346107587,0.00336531,66761.0,66760.0,0.62467996]
[1722346108436,0.00336531,66761.0,66760.0,0.92425996]
[1722346108663,0.00336531,66761.0,66760.0,0.62467996]
[1722346109036,0.00336531,66761.0,66760.0,1.05418137]
[1722346109241,0.00336531,66761.0,66760.0,1.35376137]
[1722346109452,0.00336531,66761.0,66760.0,1.65334137]
[1722346109765,0.00336531,66761.0,66760.0,1.78985522]
[1722346110002,0.00336531,66761.0,66760.0,1.78785522]
[1722346110209,0.00236508,66761.0,66760.0,1.77285522]
[1722346110524,0.00336508,66761.0,66760.0,1.77785522]
[1722346112382,0.00336508,66761.0,66760.0,1.52341996]
[1722346112538,0.00336508,66761.0,66760.0,1.22383996]
[1722346115126,0.00336508,66761.0,66760.0,1.23583996]
[1722346115346,0.00336508,66761.0,66760.0,1.22383996]
[1722346115744,0.00336508,66761.0,66760.0,1.23583996]
[1722346115969,0.00336508,66761.0,66760.0,1.68611428]
[1722346116440,0.00336508,66761.0,66760.0,1.84066599]
[1722346116820,0.00336508,66761.0,66760.0,2.41087903]
[1722346116994,0.00083,66784.0,66781.0,0.449229]
[1722346117155,0.00083,66784.0,66781.0,0.588629]
[1722346117362,0.00083,66784.0,66783.0,0.449215]
[1722346117596,0.00083,66784.0,66783.0,0.47410521]
[1722346117772,0.00083,66784.0,66783.0,0.77358221]
[1722346118959,0.00083,66784.0,66783.0,0.91468221]
[1722346119843,0.00083,66784.0,66783.0,1.21415921]
[1722346120055,0.00083,66784.0,66783.0,0.91468221]
[1722346120368,0.00083,66784.0,66783.0,1.54367621]
[1722346120566,0.00083,66784.0,66783.0,1.24419921]
[1722346120852,0.00083,66784.0,66783.0,0.34576821]
[1722346121057,0.00083,66784.0,66783.0,0.64724521]
[1722346121234,0.00083,66784.0,66783.0,1.24619921]
[1722346121436,0.00083,66784.0,66783.0,1.24419921]
[1722346121845,0.00183,66784.0,66783.0,1.25819921]
[1722346122028,0.00083,66784.0,66783.0,1.24419921]
[1722346122436,0.00183,66784.0,66783.0,1.25819921]
[1722346122778,0.00183,66784.0,66783.0,1.26701897]
[1722346123322,0.00183,66784.0,66783.0,0.96754197]
[1722346123535,0.00183,66784.0,66783.0,0.66806497]
[1722346123766,0.00183,66784.0,66783.0,0.96754197]
[1722346123966,0.00083,66784.0,66783.0,0.95354197]
[1722346124318,0.00083,66784.0,66783.0,0.96754197]
[1722346127248,0.00083,66784.0,66783.0,1.26701897]
[1722346127442,0.00083,66784.0,66783.0,1.41289207]
[1722346129027,0.00083,66784.0,66783.0,1.42289207]
[1722346129607,0.00083,66784.0,66783.0,1.72236907]
[1722346129951,0.00083,66784.0,66783.0,1.72436907]
[1722346130535,0.00083,66784.0,66783.0,1.74436907]
[1722346130745,0.00083,66784.0,66783.0,1.84436907]
[1722346131395,0.00083,66784.0,66783.0,2.14384607]
[1722346131617,0.00083,66784.0,66783.0,2.26829399]
[1722346131748,0.44444115,66803.0,66802.0,0.149696]
[1722346131945,0.44444115,66803.0,66802.0,0.63284955]
[1722346132130,0.149667,66815.0,66811.0,0.149675]
[1722346132340,0.29933,66816.0,66809.0,0.14968]
[1722346132544,0.150514,66812.0,66811.0,0.02457744]
[1722346132740,0.150514,66812.0,66802.0,0.443491]
[1722346132741,0.00084,66812.0,66805.0,0.299376]
[1722346132947,0.150514,66812.0,66808.0,0.149682]
[1722346133206,0.149676,66811.0,66807.0,0.149683]
[1722346133403,0.149676,66811.0,66809.0,0.02530137]
[1722346133606,0.00103974,66810.0,66808.0,0.1749764]
[1722346133761,0.150514,66812.0,66808.0,0.0252944]
[1722346133964,0.150514,66812.0,66809.0,0.02529032]
[1722346134572,0.154514,66812.0,66809.0,0.02529032]
[1722346134770,0.149676,66811.0,66809.0,0.02529032]
[1722346135185,0.304187,66812.0,66809.0,0.02529032]
[1722346135381,0.149678,66810.0,66807.0,0.149684]
[1722346135615,0.149678,66810.0,66808.0,0.02529281]
[1722346135832,0.29198,66809.0,66808.0,0.02529281]
[1722346135995,0.29198,66809.0,66799.0,0.299403]
[1722346135996,0.149688,66806.0,66801.0,0.299396]
[1722346136198,0.149689,66805.0,66802.0,0.02531731]
[1722346136400,0.149687,66806.0,66802.0,0.149695]
[1722346136603,0.149699,66801.0,66798.0,0.00904254]
[1722346136937,0.149702,66800.0,66791.0,0.03004]
[1722346137085,0.1497,66800.0,66795.0,0.299423]
[1722346137287,0.1423,66809.0,66793.0,0.29943]
[1722346137469,0.1423,66809.0,66790.0,0.1441]
[1722346137675,0.299413,66798.0,66793.0,0.149715]
[1722346137917,0.149709,66796.0,66793.0,0.149715]
[1722346138170,0.149709,66796.0,66791.0,0.299437]
[1722346138171,0.149709,66796.0,66792.0,0.149717]
[1722346138418,0.149712,66795.0,66791.0,0.149719]
[1722346138619,0.14971,66796.0,66791.0,0.29944]
[1722346138868,0.1398,66799.0,66794.0,0.149713]
[1722346139031,0.149707,66797.0,66794.0,0.149713]
[1722346139362,0.149707,66797.0,66793.0,0.149715]
[1722346139687,0.449115,66798.0,66794.0,0.149713]
[1722346140258,0.1398,66799.0,66790.0,0.1441]
[1722346140408,0.1398,66799.0,66789.0,0.149723]
[1722346140409,0.1398,66799.0,66795.0,0.007]
[1722346140608,0.149713,66795.0,66789.0,0.299449]
[1722346140815,0.14971,66796.0,66792.0,0.149717]
[1722346141020,0.149712,66795.0,66794.0,0.001]
[1722346141233,0.149712,66795.0,66792.0,0.149718]
[1722346141452,0.14971,66796.0,66792.0,0.149718]
[1722346141952,0.14971,66796.0,66792.0,0.149717]
[1722346142406,0.149711,66795.0,66792.0,0.149717]
[1722346142607,0.14971,66796.0,66792.0,0.149717]
[1722346142801,0.149711,66795.0,66792.0,0.149717]
[1722346143346,0.149711,66795.0,66791.0,0.44916]
[1722346143550,0.149711,66795.0,66791.0,0.14972]
[1722346143772,0.149711,66795.0,66794.0,0.004]
[1722346144132,0.149711,66795.0,66792.0,0.149718]
[1722346144331,0.439207,66799.0,66792.0,0.004]
[1722346144332,0.449148,66793.0,66792.0,0.004]
[1722346144539,0.149716,66793.0,66792.0,0.004]
[1722346144746,0.149723,66790.0,66787.0,0.03004]
[1722346145715,0.299414,66797.0,66786.0,0.03004]
[1722346145927,0.14973,66787.0,66784.0,0.0653]
[1722346146137,0.299448,66790.0,66784.0,0.149736]
[1722346146354,0.149725,66789.0,66785.0,0.02540526]
[1722346146556,0.149724,66790.0,66786.0,0.149731]
[1722346146721,0.149723,66790.0,66786.0,0.14973]
[1722346146920,0.00153349,66789.0,66787.0,0.02539708]
[1722346147215,0.149723,66790.0,66787.0,0.02539708]
[1722346147441,0.299441,66792.0,66787.0,0.17512508]
[1722346147442,0.149721,66791.0,66787.0,0.17512508]
[1722346147609,0.149723,66790.0,66787.0,0.17512508]
[1722346147820,0.299441,66792.0,66788.0,0.149727]
[1722346147821,0.149719,66792.0,66788.0,0.149727]
[1722346148114,0.299428,66794.0,66788.0,0.149727]
[1722346148115,0.149721,66791.0,66788.0,0.149727]
[1722346148312,0.149723,66790.0,66789.0,0.02538891]
[1722346148643,0.149723,66790.0,66787.0,0.149729]
[1722346148818,0.149723,66790.0,66786.0,0.149731]
[1722346148992,0.149721,66791.0,66788.0,0.025393]
[1722346150005,0.149721,66791.0,66788.0,0.01301617]
[1722346151063,0.149718,66792.0,66789.0,0.005]
[1722346151240,0.299428,66794.0,66788.0,0.16274317]
[1722346151241,0.149721,66791.0,66788.0,0.16274217]
[1722346151446,0.149721,66791.0,66790.0,0.01301412]
[1722346151649,0.149721,66791.0,66789.0,0.01303045]
[1722346151877,0.299434,66793.0,66790.0,0.0130284]
[1722346152097,0.14972,66791.0,66790.0,0.0130284]
[1722346152297,0.14972,66791.0,66788.0,0.149726]
[1722346152454,0.149719,66792.0,66789.0,0.003]
[1722346152660,0.14972,66791.0,66789.0,0.01563654]
[1722346152857,0.299434,66793.0,66789.0,0.01563654]
[1722346153037,0.149719,66792.0,66789.0,0.01563654]
[1722346153239,0.149715,66794.0,66790.0,0.149722]
[1722346153489,0.149715,66794.0,66789.0,0.0909837]
[1722346153490,0.149718,66792.0,66789.0,0.2407077]
[1722346153700,0.149718,66792.0,66791.0,0.01563163]
[1722346153905,0.149718,66792.0,66790.0,0.01563408]
[1722346154084,0.149718,66792.0,66791.0,0.01563163]
[1722346154282,0.0657,66802.0,66791.0,0.15681269]
[1722346154564,0.374389,66803.0,66794.0,0.299427]
[1722346154565,0.29939,66803.0,66794.0,0.299427]
[1722346154823,0.0657,66805.0,66794.0,0.299427]
[1722346154824,0.149699,66801.0,66797.0,0.149707]
[1722346155148,0.149699,66801.0,66796.0,0.149708]
[1722346155460,0.149702,66800.0,66797.0,0.01301411]
[1722346155712,0.149701,66800.0,66797.0,0.01301411]
[1722346155912,0.149701,66800.0,66795.0,0.149711]
[1722346156088,0.149702,66799.0,66798.0,0.01301206]
[1722346156290,0.149702,66799.0,66795.0,0.149711]
[1722346156552,0.149702,66799.0,66798.0,0.01301206]
[1722346156758,0.149702,66799.0,66795.0,0.149711]
[1722346156875,0.149702,66799.0,66798.0,0.01301206]
[1722346157079,0.001,66801.0,66795.0,0.299423]
[1722346157326,0.001,66801.0,66798.0,0.16271606]
[1722346157604,0.001,66801.0,66800.0,0.449101]
[1722346157780,0.149687,66806.0,66802.0,0.149694]
[1722346157979,0.149687,66806.0,66802.0,0.149695]
[1722346158184,0.299372,66807.0,66803.0,0.01560223]
[1722346158357,0.149687,66806.0,66803.0,0.01560223]
[1722346159108,0.761654,66811.0,66803.0,0.01560223]
[1722346159311,0.149691,66804.0,66800.0,0.2109]
[1722346159460,0.14969,66805.0,66801.0,0.149698]
[1722346159656,0.300371,66807.0,66800.0,0.0612]
[1722346159657,0.001,66807.0,66800.0,0.0612]
[1722346159857,0.001,66807.0,66806.0,0.149687]
[1722346160059,0.001,66807.0,66806.0,0.528961]
[1722346160260,0.001,66807.0,66806.0,0.592361]
[1722346160440,0.001,66807.0,66806.0,1.02059589]
[1722346161213,0.00084,66812.0,66811.0,0.449026]
[1722346161413,0.00084,66812.0,66811.0,0.149675]
[1722346161589,0.00084,66812.0,66811.0,0.45838762]
[1722346161793,0.00084,66812.0,66811.0,0.60806262]
[1722346162292,0.00084,66812.0,66811.0,0.30871162]
[1722346162616,0.00084,66812.0,66811.0,0.16521162]
[1722346162955,0.00084,66812.0,66811.0,0.17021162]
[1722346163604,0.00084,66812.0,66811.0,0.76891362]
[1722346163940,0.00084,66812.0,66811.0,0.89046007]
[1722346164255,0.00084,66812.0,66811.0,0.46956262]
[1722346166674,0.00084,66812.0,66811.0,0.76891362]
[1722346167416,0.00084,66812.0,66811.0,0.46956262]
[1722346167618,0.00084,66812.0,66811.0,0.76891362]
[1722346168937,0.00084,66812.0,66811.0,0.46956262]
[1722346169138,0.00084,66812.0,66811.0,0.76891362]
[1722346169940,0.00084,66812.0,66811.0,0.46956262]
[1722346170391,0.00084,66812.0,66811.0,0.17021162]
[1722346170772,0.00084,66812.0,66811.0,0.02053662]
[1722346170773,0.150513,66812.0,66811.0,0.02053662]
[1722346170969,0.00084,66812.0,66811.0,0.02053662]
[1722346171574,0.150513,66812.0,66811.0,0.02053662]
[1722346171777,0.00084,66812.0,66811.0,0.02053662]
[1722346171986,0.150513,66812.0,66811.0,0.02053662]
[1722346172359,0.44986,66812.0,66811.0,0.02053662]
[1722346172644,1.048554,66812.0,66811.0,0.02053662]
[1722346173008,1.048554,66812.0,66811.0,0.005]
[1722346173871,0.748412,66808.0,66807.0,0.00899189]
[1722346174635,1.047777,66808.0,66807.0,0.00899189]
[1722346175079,1.186777,66808.0,66807.0,0.00899189]
[1722346176074,1.79484171,66808.0,66807.0,0.00899189]
[1722346176276,1.59547671,66808.0,66807.0,0.01199189]
[1722346177135,1.59547671,66808.0,66807.0,0.00899189]
[1722346177457,1.59547671,66808.0,66807.0,0.00999189]
[1722346177458,1.60559337,66808.0,66807.0,0.00999189]
[1722346178055,1.60559451,66808.0,66807.0,0.00999189]
[1722346180193,1.60559451,66808.0,66807.0,0.00899189]
[1722346180414,1.60459451,66808.0,66807.0,0.00899189]
[1722346180619,1.60759451,66808.0,66807.0,0.00999189]
[1722346180971,1.60459451,66808.0,66807.0,0.00899189]
[1722346181594,1.60459426,66808.0,66807.0,0.00899189]
[1722346181796,1.59525866,66808.0,66807.0,0.00899189]
[1722346182394,1.59725866,66808.0,66807.0,0.00999189]
[1722346184006,1.59725866,66808.0,66807.0,0.001]
[1722346184210,1.60659416,66808.0,66807.0,0.001]
[1722346187865,1.60659422,66808.0,66807.0,0.001]
[1722346189261,1.74105618,66808.0,66807.0,0.001]
[1722346189671,1.60659422,66808.0,66807.0,0.001]
[1722346191668,1.90595947,66808.0,66807.0,0.001]
[1722346191876,1.91595947,66808.0,66807.0,0.001]
[1722346192209,1.93595986,66808.0,66807.0,0.001]
[1722346192414,1.94015104,66808.0,66807.0,0.001]
[1722346193430,1.96015104,66808.0,66807.0,0.001]
[1722346194735,1.048106,66787.0,66786.0,0.0614]
[1722346195935,0.149729,66787.0,66786.0,0.15082846]
[1722346196239,0.149729,66787.0,66786.0,0.15372846]
[1722346196452,0.449188,66787.0,66786.0,0.17717624]
[1722346196628,0.449188,66787.0,66786.0,0.24369494]
[1722346197007,0.149729,66787.0,66786.0,0.24369494]
[1722346197403,0.149729,66787.0,66786.0,0.24569494]
[1722346197781,0.149729,66787.0,66786.0,0.17034778]
[1722346198067,0.449188,66787.0,66786.0,0.17034778]
[1722346198358,0.748647,66787.0,66786.0,0.17034778]
[1722346198765,0.748647,66787.0,66786.0,0.1469]
[1722346198986,0.748647,66787.0,66786.0,0.17034778]
[1722346199796,0.449188,66787.0,66786.0,0.17034778]
[1722346200282,0.00894372,66796.0,66786.0,0.17034778]
[1722346200514,0.748647,66787.0,66786.0,0.17034778]
[1722346200716,1.048106,66787.0,66786.0,0.02544778]
[1722346200922,0.00095887,66796.0,66787.0,0.0816]
[1722346201226,0.449177,66789.0,66788.0,0.0662]
[1722346201352,0.149727,66789.0,66788.0,0.0662]
[1722346201551,0.449177,66789.0,66788.0,0.0662]
[1722346201750,0.149727,66789.0,66788.0,0.0662]
[1722346201957,0.449177,66789.0,66788.0,0.0662]
[1722346202161,0.26980798,66802.0,66794.0,0.149713]
[1722346202162,0.299407,66799.0,66794.0,0.149713]
[1722346202360,0.299414,66797.0,66796.0,0.0662]
[1722346202565,0.45845721,66797.0,66796.0,0.0662]
[1722346203042,0.748535,66797.0,66796.0,0.0662]
[1722346203267,0.15904264,66797.0,66796.0,0.0662]
[1722346203468,0.00933564,66797.0,66796.0,0.0662]
[1722346203670,0.449121,66797.0,66796.0,0.0662]
[1722346203804,0.45845664,66797.0,66796.0,0.0662]
[1722346204300,0.75787064,66797.0,66796.0,0.0662]
[1722346204712,0.75787064,66797.0,66786.0,0.02436078]
[1722346204713,0.449188,66787.0,66786.0,0.02436078]
[1722346204916,0.89758264,66787.0,66786.0,0.02436078]
[1722346205111,1.35099813,66787.0,66786.0,0.02436078]
[1722346205368,1.35099813,66787.0,66784.0,0.000913]
[1722346205369,0.03,66785.0,66784.0,0.000913]
[1722346205679,0.449356,66762.0,66760.0,0.140613]
[1722346205921,1.05783364,66762.0,66760.0,0.140613]
[1722346206142,1.05783364,66762.0,66760.0,0.000913]
[1722346206376,0.15912605,66762.0,66760.0,0.000913]
[1722346206599,0.299563,66764.0,66760.0,0.000913]
[1722346206600,0.149753,66777.0,66761.0,0.142813]
[1722346206803,0.5695,66791.0,66773.0,0.0799]
[1722346207029,0.0093378,66787.0,66773.0,0.14639489]
[1722346207240,0.0015542,66790.0,66778.0,0.1917]
[1722346207443,0.0015542,66790.0,66789.0,0.225925]
[1722346207648,0.44444115,66798.0,66790.0,0.0624]
[1722346207649,0.0015542,66797.0,66790.0,0.0624]
[1722346207852,0.149716,66794.0,66790.0,0.0624]
[1722346208054,0.0015542,66793.0,66790.0,0.0624]
[1722346208238,0.149717,66793.0,66790.0,0.0624]
[1722346208363,0.149717,66793.0,66790.0,0.0514]
[1722346208572,0.299422,66796.0,66790.0,0.0514]
[1722346208795,0.299389,66803.0,66790.0,0.1090792]
[1722346209014,0.006,66797.0,66790.0,0.1100792]
[1722346209228,0.1497,66800.0,66795.0,0.14971]
[1722346209432,0.10083,66808.0,66793.0,0.00899412]
[1722346209643,0.00933547,66807.0,66793.0,0.00899412]
[1722346209862,0.149706,66798.0,66793.0,0.15870912]
[1722346210065,0.299374,66806.0,66793.0,0.30842312]
[1722346210421,0.00083,66808.0,66793.0,0.30842312]
[1722346210422,0.002,66797.0,66793.0,0.00899412]
[1722346210721,0.149709,66796.0,66793.0,0.00899412]
[1722346210916,0.002,66797.0,66794.0,0.149713]
[1722346211114,0.002,66797.0,66793.0,0.00899412]
[1722346211416,0.002,66797.0,66793.0,0.15870912]
[1722346211617,0.002,66797.0,66796.0,0.00899412]
[1722346211816,0.149706,66798.0,66796.0,0.00899412]
[1722346212042,0.149707,66797.0,66796.0,0.00899412]
[1722346212197,0.748535,66797.0,66796.0,0.00899412]
[1722346212536,1.047998,66794.0,66793.0,0.1]
[1722346212681,1.43210989,66794.0,66793.0,0.1]
[1722346213512,1.53210989,66794.0,66793.0,0.1]
[1722346213759,1.54210989,66794.0,66793.0,0.1]
[1722346214010,1.86153789,66794.0,66793.0,0.1]
[1722346214234,2.0901892,66794.0,66793.0,0.1]
[1722346214447,2.53845515,66794.0,66793.0,0.1]
[1722346214638,2.58021877,66794.0,66793.0,0.1]
[1722346214960,2.62188982,66794.0,66793.0,0.1]
[1722346215158,2.58021877,66794.0,66793.0,0.1]
[1722346215369,2.5612392,66794.0,66793.0,0.101]
[1722346215725,2.51968604,66794.0,66793.0,0.101]
[1722346216025,2.56144966,66794.0,66793.0,0.101]
[1722346216186,2.51968604,66794.0,66793.0,0.101]
[1722346217426,2.51968604,66794.0,66793.0,0.07749625]
[1722346217988,0.149785,66762.0,66761.0,0.082313]
[1722346218213,0.748927,66762.0,66761.0,0.000913]
[1722346218483,1.048498,66762.0,66761.0,0.000913]
[1722346218762,1.348069,66762.0,66761.0,0.000913]
[1722346219116,1.048498,66762.0,66761.0,0.000913]
[1722346219306,1.049498,66762.0,66761.0,0.000913]
[1722346219515,1.048498,66762.0,66761.0,0.000913]
[1722346219958,1.057498,66762.0,66761.0,0.000913]
[1722346220277,1.048498,66762.0,66761.0,0.000913]
[1722346220634,1.057498,66762.0,66761.0,0.000913]
[1722346220848,0.757927,66762.0,66761.0,0.000913]
[1722346221270,1.057498,66762.0,66761.0,0.000913]
[1722346222883,1.448069,66762.0,66761.0,0.000913]
[1722346223322,1.455069,66762.0,66761.0,0.000913]
[1722346223956,1.537969,66762.0,66761.0,0.000913]
[1722346224095,1.530969,66762.0,66761.0,0.000913]
[1722346224289,1.54031168,66762.0,66761.0,0.000913]
[1722346224489,1.93374,66762.0,66761.0,0.000913]
[1722346224805,1.92308294,66762.0,66761.0,0.000913]
[1722346225034,1.93374,66762.0,66761.0,0.000913]
[1722346225329,1.96475445,66762.0,66761.0,0.000913]
[1722346225491,1.98475445,66762.0,66761.0,0.000913]
[1722346225946,1.97775445,66762.0,66761.0,0.000913]
[1722346226550,2.2496544,66762.0,66761.0,0.000913]
[1722346227250,2.2496544,66762.0,66744.0,0.004273]
[1722346227251,1.348411,66745.0,66744.0,0.004273]
[1722346227396,1.491411,66745.0,66744.0,0.004273]
[1722346227581,1.591411,66745.0,66744.0,0.004273]
[1722346228141,1.901058,66745.0,66744.0,0.004273]
[1722346228280,1.921058,66745.0,66744.0,0.004273]
[1722346228687,2.91900367,66745.0,66744.0,0.004273]
[1722346228943,2.80276967,66745.0,66744.0,0.004273]
[1722346229096,1.67484567,66745.0,66744.0,0.004273]
[1722346229304,1.591411,66745.0,66744.0,0.004273]
[1722346229735,1.901058,66745.0,66744.0,0.004273]
[1722346230085,1.93282162,66745.0,66744.0,0.004273]
[1722346230287,1.905058,66745.0,66744.0,0.004273]
[1722346230646,1.891058,66745.0,66744.0,0.004273]
[1722346230847,1.93013384,66745.0,66744.0,0.004273]
[1722346231076,1.92413384,66745.0,66744.0,0.004273]
[1722346231286,1.94413384,66745.0,66744.0,0.004273]
[1722346231566,2.24378084,66745.0,66744.0,0.004273]
[1722346231877,1.444935,66729.0,66728.0,0.0152664]
[1722346232044,2.27326216,66729.0,66728.0,0.0152664]
[1722346232240,1.60622866,66729.0,66728.0,0.0152664]
[1722346232646,1.90594766,66729.0,66728.0,0.0152664]
[1722346232852,1.90594766,66729.0,66696.0,0.03004]
[1722346232853,0.01,66720.0,66702.0,0.0661]
[1722346233054,1.72474716,66720.0,66702.0,0.0661]
[1722346233292,2.38068362,66720.0,66719.0,0.0294452]
[1722346233495,2.38068362,66720.0,66719.0,0.009273]
[1722346233722,2.41885266,66720.0,66719.0,0.009273]
[1722346234052,2.38068362,66720.0,66719.0,0.009273]
[1722346234180,2.03916,66720.0,66719.0,0.009273]